[Event "*** Titled Tuesday Blitz"]
[Site "Chess.com"]
[Date "2020.04.28"]
[Round "5"]
[White "maciek_92"]
[Black "Milchone1"]
[Result "1-0"]
[WhiteElo "2676"]
[BlackElo "2495"]
[TimeControl "180+1"]
[EndTime "10:55:52 PDT"]
[Termination "maciek_92 won by resignation"]

1. e4 {[%clk 0:03:00.9]} 1... e5 {[%clk 0:02:59.5]} 2. Nf3 {[%clk 0:03:01.2]}
2... Nc6 {[%clk 0:02:59.8]} 3. Bb5 {[%clk 0:03:01.5]} 3... Nge7 {[%clk
0:03:00.2]} 4. c3 {[%clk 0:03:00]} 4... a6 {[%clk 0:03:00.3]} 5. Ba4 {[%clk
0:02:59.4]} 5... g6 {[%clk 0:03:00.3]} 6. d4 {[%clk 0:02:59.8]} 6... exd4 {[%clk
0:03:01.2]} 7. Bg5 {[%clk 0:02:54.8]} 7... Bg7 {[%clk 0:03:00.1]} 8. O-O {[%clk
0:02:51.3]} 8... h6 {[%clk 0:02:59.7]} 9. Bh4 {[%clk 0:02:50.7]} 9... b5 {[%clk
0:02:58.5]} 10. Bb3 {[%clk 0:02:50.1]} 10... g5 {[%clk 0:02:53]} 11. Bg3 {[%clk
0:02:42.3]} 11... dxc3 {[%clk 0:02:49.9]} 12. Nxc3 {[%clk 0:02:43.2]} 12... d6
{[%clk 0:02:50]} 13. a4 {[%clk 0:02:31.1]} 13... Rb8 {[%clk 0:02:42]} 14. axb5
{[%clk 0:02:30.2]} 14... axb5 {[%clk 0:02:42.9]} 15. Nd5 {[%clk 0:02:06.2]}
15... O-O {[%clk 0:02:36.1]} 16. Rc1 {[%clk 0:01:51.4]} 16... Be6 {[%clk
0:02:32.6]} 17. h4 {[%clk 0:01:47.2]} 17... g4 {[%clk 0:02:31.6]} 18. Nh2 {[%clk
0:01:44.7]} 18... h5 {[%clk 0:02:30]} 19. Bf4 {[%clk 0:01:45.2]} 19... Bxd5
{[%clk 0:02:22.9]} 20. Bxd5 {[%clk 0:01:41.8]} 20... Ne5 {[%clk 0:02:20.6]} 21.
Bg5 {[%clk 0:01:36.4]} 21... Qd7 {[%clk 0:02:18.6]} 22. f4 {[%clk 0:01:29.3]}
22... gxf3 {[%clk 0:02:18.2]} 23. Nxf3 {[%clk 0:01:29.8]} 23... Nxd5 {[%clk
0:02:18]} 24. Nxe5 {[%clk 0:01:24.7]} 24... dxe5 {[%clk 0:02:12.1]} 25. exd5
{[%clk 0:01:24.3]} 25... f6 {[%clk 0:02:04]} 26. Be3 {[%clk 0:01:23.6]} 26...
Qf7 {[%clk 0:02:03.2]} 27. Rc5 {[%clk 0:01:00]} 27... Rfd8 {[%clk 0:02:01]} 28.
Qc2 {[%clk 0:00:59.1]} 28... Rd7 {[%clk 0:01:58.8]} 29. Rc1 {[%clk 0:00:39.2]}
29... Rb7 {[%clk 0:01:58.1]} 30. Qf5 {[%clk 0:00:36.3]} 30... b4 {[%clk
0:01:17.3]} 31. d6 {[%clk 0:00:35.6]} 31... Rxd6 {[%clk 0:01:14]} 32. Qc8+
{[%clk 0:00:34]} 32... Kh7 {[%clk 0:01:14]} 33. Qxb7 {[%clk 0:00:34.6]} 33...
Rd3 {[%clk 0:00:59.7]} 34. Qe4+ {[%clk 0:00:31.5]} 34... Qg6 {[%clk 0:01:00.6]}
35. Qxg6+ {[%clk 0:00:31.4]} 35... Kxg6 {[%clk 0:01:01.5]} 36. Kf2 {[%clk
0:00:31.8]} 36... Bf8 {[%clk 0:00:59.4]} 37. Rxc7 {[%clk 0:00:31.3]} 37... Kf5
{[%clk 0:00:55.4]} 38. Ke2 {[%clk 0:00:31.3]} 38... Rb3 {[%clk 0:00:55.2]} 39.
R1c2 {[%clk 0:00:31.7]} 39... Ke4 {[%clk 0:00:54.1]} 40. R7c4+ {[%clk
0:00:31.7]} 40... Kd5 {[%clk 0:00:53.7]} 41. Rc8 {[%clk 0:00:28.9]} 41... Be7
{[%clk 0:00:52.5]} 42. Rd2+ {[%clk 0:00:26.6]} 42... Ke4 {[%clk 0:00:51.9]} 43.
Rc4+ {[%clk 0:00:26.5]} 43... Kf5 {[%clk 0:00:52.8]} 44. Rcc2 {[%clk 0:00:26.2]}
44... Ke6 {[%clk 0:00:52.2]} 45. Rd3 {[%clk 0:00:26.2]} 45... Rxd3 {[%clk
0:00:46.3]} 46. Kxd3 {[%clk 0:00:27.1]} 46... f5 {[%clk 0:00:47.2]} 47. Rc6+
{[%clk 0:00:27.3]} 47... Kd5 {[%clk 0:00:47.1]} 48. Ra6 {[%clk 0:00:28.2]} 48...
e4+ {[%clk 0:00:47]} 49. Kc2 {[%clk 0:00:27.3]} 49... Bd6 {[%clk 0:00:46.9]} 50.
Ra5+ {[%clk 0:00:27.7]} 50... Ke6 {[%clk 0:00:46.7]} 51. Kd2 {[%clk 0:00:26]}
51... f4 {[%clk 0:00:46.3]} 52. Rxh5 {[%clk 0:00:26.3]} 52... fxe3+ {[%clk
0:00:44.9]} 53. Kxe3 {[%clk 0:00:27.2]} 53... Be5 {[%clk 0:00:44.8]} 54. b3
{[%clk 0:00:25.8]} 54... Kd5 {[%clk 0:00:44]} 55. g4 {[%clk 0:00:26.3]} 55...
Ke6 {[%clk 0:00:42.5]} 56. Kxe4 {[%clk 0:00:27.2]} 56... Bc3 {[%clk 0:00:42.9]}
57. Rb5 {[%clk 0:00:27.5]} 57... Kf6 {[%clk 0:00:42.3]} 58. h5 {[%clk
0:00:28.4]} 58... Bd2 {[%clk 0:00:41.3]} 59. g5+ {[%clk 0:00:29]} 59... Bxg5
{[%clk 0:00:40.6]} 60. Rf5+ {[%clk 0:00:29.6]} 60... Ke6 {[%clk 0:00:40]} 61.
Rxg5 {[%clk 0:00:30.5]} 1-0

[Event "*** Titled Tuesday Blitz"]
[Site "Chess.com"]
[Date "2020.04.28"]
[Round "5"]
[White "IlzeBerzina"]
[Black "WelshTiger"]
[Result "0-1"]
[WhiteElo "2154"]
[BlackElo "2340"]
[TimeControl "180+1"]
[EndTime "10:55:52 PDT"]
[Termination "WelshTiger won by resignation"]

1. e4 {[%clk 0:03:00.9]} 1... c5 {[%clk 0:02:59.9]} 2. Nf3 {[%clk 0:03:00.7]}
2... Nc6 {[%clk 0:02:59.6]} 3. Bb5 {[%clk 0:03:00.3]} 3... g6 {[%clk 0:02:59.1]}
4. O-O {[%clk 0:02:59.8]} 4... Bg7 {[%clk 0:02:59.3]} 5. Re1 {[%clk 0:02:59.2]}
5... e5 {[%clk 0:02:58.4]} 6. c3 {[%clk 0:02:58.6]} 6... Nge7 {[%clk 0:02:54.9]}
7. d4 {[%clk 0:02:57.4]} 7... cxd4 {[%clk 0:02:55.1]} 8. cxd4 {[%clk 0:02:57.3]}
8... exd4 {[%clk 0:02:55.4]} 9. Bf4 {[%clk 0:02:56.9]} 9... O-O {[%clk
0:02:50.4]} 10. Nbd2 {[%clk 0:02:52.5]} 10... d5 {[%clk 0:02:45.3]} 11. e5
{[%clk 0:02:48.1]} 11... Qb6 {[%clk 0:02:36.3]} 12. Ba4 {[%clk 0:02:34.3]} 12...
Qxb2 {[%clk 0:02:25.9]} 13. Nb3 {[%clk 0:02:20.6]} 13... Qa3 {[%clk 0:02:15.5]}
14. Bb5 {[%clk 0:02:09.2]} 14... Bg4 {[%clk 0:02:09]} 15. Be2 {[%clk 0:02:05.2]}
15... Rac8 {[%clk 0:01:44.5]} 16. Nbxd4 {[%clk 0:02:02.6]} 16... Nxd4 {[%clk
0:01:44]} 17. Nxd4 {[%clk 0:02:00.7]} 17... Bxe2 {[%clk 0:01:43.1]} 18. Qxe2
{[%clk 0:01:55.3]} 18... Rc4 {[%clk 0:01:25.3]} 19. Rad1 {[%clk 0:01:42.5]}
19... a6 {[%clk 0:01:25.1]} 20. Bg5 {[%clk 0:01:35]} 20... Re8 {[%clk
0:01:23.8]} 21. h4 {[%clk 0:01:05.5]} 21... Qc3 {[%clk 0:01:19.6]} 22. Nf3
{[%clk 0:00:55.1]} 22... Re4 {[%clk 0:01:14.6]} 23. Qd2 {[%clk 0:00:45.8]} 23...
Rxe1+ {[%clk 0:01:11.1]} 24. Rxe1 {[%clk 0:00:39.2]} 24... Qxd2 {[%clk 0:01:08]}
25. Bxd2 {[%clk 0:00:33.2]} 25... Nc6 {[%clk 0:01:08]} 26. Bf4 {[%clk
0:00:30.3]} 26... h6 {[%clk 0:01:03.3]} 27. Rd1 {[%clk 0:00:28.9]} 27... Rd8
{[%clk 0:01:01.8]} 28. Kf1 {[%clk 0:00:22.5]} 28... Kf8 {[%clk 0:01:01.9]} 29.
Ke2 {[%clk 0:00:21.6]} 29... Ke7 {[%clk 0:01:02.2]} 30. Rd2 {[%clk 0:00:19.2]}
30... Ke6 {[%clk 0:01:01.8]} 31. Rd3 {[%clk 0:00:15.4]} 31... d4 {[%clk
0:00:52.9]} 32. Rb3 {[%clk 0:00:14.8]} 32... b5 {[%clk 0:00:51.9]} 33. a4 {[%clk
0:00:13]} 33... b4 {[%clk 0:00:51.5]} 34. Bd2 {[%clk 0:00:11.3]} 34... a5 {[%clk
0:00:51.8]} 35. Kd3 {[%clk 0:00:10.6]} 35... Kd5 {[%clk 0:00:42.4]} 36. Bf4
{[%clk 0:00:08.6]} 36... Rc8 {[%clk 0:00:38.8]} 37. Rb2 {[%clk 0:00:07.9]} 37...
Nxe5+ {[%clk 0:00:34.7]} 38. Nxe5 {[%clk 0:00:06.9]} 38... Rc3+ {[%clk
0:00:34.3]} 39. Kd2 {[%clk 0:00:06.1]} 39... Bxe5 {[%clk 0:00:34.5]} 40. Bxh6
{[%clk 0:00:05.8]} 40... Kc4 {[%clk 0:00:28.2]} 41. Rb1 {[%clk 0:00:05.5]} 41...
b3 {[%clk 0:00:27.7]} 42. Bg5 {[%clk 0:00:04.4]} 42... Rc2+ {[%clk 0:00:26.5]}
43. Ke1 {[%clk 0:00:03.5]} 43... d3 {[%clk 0:00:26.7]} 44. Kd1 {[%clk
0:00:03.1]} 44... Rxf2 {[%clk 0:00:21.9]} 0-1

[Event "*** Titled Tuesday Blitz"]
[Site "Chess.com"]
[Date "2020.04.28"]
[Round "5"]
[White "belisarius64"]
[Black "Riptide27"]
[Result "1/2-1/2"]
[WhiteElo "2623"]
[BlackElo "2481"]
[TimeControl "180+1"]
[EndTime "10:55:53 PDT"]
[Termination "Game drawn by repetition"]

1. e4 {[%clk 0:03:00.9]} 1... e5 {[%clk 0:02:59.5]} 2. Nf3 {[%clk 0:03:01]} 2...
Nc6 {[%clk 0:02:58.1]} 3. Bb5 {[%clk 0:03:01.6]} 3... a6 {[%clk 0:02:58.1]} 4.
Ba4 {[%clk 0:03:02.1]} 4... Nf6 {[%clk 0:02:57.4]} 5. O-O {[%clk 0:03:02.6]}
5... Be7 {[%clk 0:02:57.2]} 6. Re1 {[%clk 0:03:02.8]} 6... b5 {[%clk 0:02:57.2]}
7. Bb3 {[%clk 0:03:03.4]} 7... d6 {[%clk 0:02:56.8]} 8. c3 {[%clk 0:03:03.8]}
8... O-O {[%clk 0:02:56.9]} 9. h3 {[%clk 0:03:04.3]} 9... Nb8 {[%clk 0:02:56.8]}
10. d4 {[%clk 0:03:04.3]} 10... Nbd7 {[%clk 0:02:57.6]} 11. Nbd2 {[%clk
0:03:04.8]} 11... Bb7 {[%clk 0:02:57.9]} 12. Bc2 {[%clk 0:03:04.5]} 12... Re8
{[%clk 0:02:58.3]} 13. Nf1 {[%clk 0:03:01.4]} 13... Bf8 {[%clk 0:02:58.1]} 14.
Ng3 {[%clk 0:03:02]} 14... g6 {[%clk 0:02:58.3]} 15. Bg5 {[%clk 0:03:01.3]}
15... h6 {[%clk 0:02:57.3]} 16. Bd2 {[%clk 0:03:00.6]} 16... Bg7 {[%clk
0:02:57.2]} 17. a4 {[%clk 0:02:54]} 17... c6 {[%clk 0:02:54.6]} 18. Bd3 {[%clk
0:02:47.5]} 18... d5 {[%clk 0:02:46.4]} 19. dxe5 {[%clk 0:02:39.6]} 19... Nxe4
{[%clk 0:02:29.4]} 20. Nxe4 {[%clk 0:02:15.2]} 20... dxe4 {[%clk 0:02:30.3]} 21.
Bxe4 {[%clk 0:02:16.1]} 21... Nxe5 {[%clk 0:02:26.9]} 22. Nxe5 {[%clk
0:02:15.9]} 22... Rxe5 {[%clk 0:02:25.2]} 23. Bf4 {[%clk 0:02:12.5]} 23... Qxd1
{[%clk 0:02:21.1]} 24. Raxd1 {[%clk 0:02:13.4]} 24... Re7 {[%clk 0:02:20.7]} 25.
Bd6 {[%clk 0:02:07.1]} 25... Rd7 {[%clk 0:02:19.8]} 26. Bc5 {[%clk 0:01:53.5]}
26... Rad8 {[%clk 0:02:16.6]} 27. Rxd7 {[%clk 0:01:53.1]} 27... Rxd7 {[%clk
0:02:17.5]} 28. Bf3 {[%clk 0:01:53.5]} 28... Bf6 {[%clk 0:02:09.5]} 29. Re8+
{[%clk 0:01:53.4]} 29... Kg7 {[%clk 0:02:06.7]} 30. axb5 {[%clk 0:01:35.1]}
30... axb5 {[%clk 0:02:04.8]} 31. Rb8 {[%clk 0:01:23]} 31... Be5 {[%clk
0:02:03.7]} 32. Re8 {[%clk 0:01:15.9]} 32... Bf6 {[%clk 0:02:02.9]} 33. Ba3
{[%clk 0:01:03.9]} 33... Rd8 {[%clk 0:02:00.5]} 34. Bf8+ {[%clk 0:00:42.6]}
34... Kh7 {[%clk 0:01:57.1]} 35. Rxd8 {[%clk 0:00:42.9]} 35... Bxd8 {[%clk
0:01:54.3]} 36. g4 {[%clk 0:00:43.6]} 36... Bg5 {[%clk 0:01:49.8]} 37. Be4
{[%clk 0:00:41.9]} 37... Kg8 {[%clk 0:01:49.1]} 38. Bc5 {[%clk 0:00:41.7]} 38...
Bc1 {[%clk 0:01:46.1]} 39. b4 {[%clk 0:00:41.4]} 39... Bd2 {[%clk 0:01:43.6]}
40. Bd4 {[%clk 0:00:38.5]} 40... Kf8 {[%clk 0:01:41]} 41. Kf1 {[%clk 0:00:34.6]}
41... Ke7 {[%clk 0:01:40.2]} 42. Ke2 {[%clk 0:00:34.7]} 42... Bf4 {[%clk
0:01:39.2]} 43. Kd3 {[%clk 0:00:29.2]} 43... Kd7 {[%clk 0:01:36.5]} 44. Be3
{[%clk 0:00:20.5]} 44... Bxe3 {[%clk 0:01:34]} 45. Kxe3 {[%clk 0:00:20.9]} 45...
Kd6 {[%clk 0:01:34.2]} 46. f4 {[%clk 0:00:20.5]} 46... Bc8 {[%clk 0:01:34]} 47.
Kd4 {[%clk 0:00:20.3]} 47... Bd7 {[%clk 0:01:32.8]} 48. f5 {[%clk 0:00:19.6]}
48... g5 {[%clk 0:01:31.7]} 49. Bc2 {[%clk 0:00:18.3]} 49... f6 {[%clk
0:01:31.2]} 50. Bb3 {[%clk 0:00:18.8]} 50... Bc8 {[%clk 0:01:30.8]} 51. Bf7
{[%clk 0:00:18.8]} 51... Bd7 {[%clk 0:01:30.7]} 52. c4 {[%clk 0:00:15.8]} 52...
bxc4 {[%clk 0:01:29.5]} 53. Bxc4 {[%clk 0:00:16.3]} 53... Bc8 {[%clk 0:01:29.4]}
54. Bd3 {[%clk 0:00:16.6]} 54... Bb7 {[%clk 0:01:28.9]} 55. Be2 {[%clk
0:00:13.9]} 55... Bc8 {[%clk 0:01:27.4]} 56. Bc4 {[%clk 0:00:14.5]} 56... Bb7
{[%clk 0:01:26.5]} 57. Be6 {[%clk 0:00:14.6]} 57... Ba6 {[%clk 0:01:25.6]} 58.
Bc4 {[%clk 0:00:09.2]} 58... Bb5 {[%clk 0:01:25.4]} 59. Bb3 {[%clk 0:00:03.1]}
59... Ba6 {[%clk 0:01:23.9]} 60. Bc4 {[%clk 0:00:03.1]} 60... Bb5 {[%clk
0:01:23.9]} 61. Bxb5 {[%clk 0:00:03.4]} 61... cxb5 {[%clk 0:01:23.6]} 62. Ke4
{[%clk 0:00:04]} 62... Kc6 {[%clk 0:01:22.3]} 63. Kd4 {[%clk 0:00:04.6]} 63...
Kd6 {[%clk 0:01:22.5]} 64. Ke4 {[%clk 0:00:05.2]} 64... Kc6 {[%clk 0:01:20.8]}
65. Kd4 {[%clk 0:00:05]} 65... Kd6 {[%clk 0:01:19.3]} 1/2-1/2

[Event "*** Titled Tuesday Blitz"]
[Site "Chess.com"]
[Date "2020.04.28"]
[Round "5"]
[White "LikeWater"]
[Black "Olga_Girya"]
[Result "1-0"]
[WhiteElo "2754"]
[BlackElo "2454"]
[TimeControl "180+1"]
[EndTime "10:55:53 PDT"]
[Termination "LikeWater won on time"]

1. e4 {[%clk 0:02:41.6]} 1... c6 {[%clk 0:02:59.9]} 2. Nf3 {[%clk 0:02:40.5]}
2... d5 {[%clk 0:02:59.9]} 3. d3 {[%clk 0:02:41.2]} 3... dxe4 {[%clk 0:02:57.9]}
4. dxe4 {[%clk 0:02:42.1]} 4... Qxd1+ {[%clk 0:02:57.9]} 5. Kxd1 {[%clk
0:02:43]} 5... Nf6 {[%clk 0:02:56.4]} 6. Nfd2 {[%clk 0:02:37.8]} 6... g6 {[%clk
0:02:55.6]} 7. a4 {[%clk 0:02:34.1]} 7... Bh6 {[%clk 0:02:55.1]} 8. f3 {[%clk
0:02:33.2]} 8... Nbd7 {[%clk 0:02:49.3]} 9. Nc4 {[%clk 0:02:30.1]} 9... Bxc1
{[%clk 0:02:48.5]} 10. Kxc1 {[%clk 0:02:31]} 10... O-O {[%clk 0:02:47.5]} 11.
Nbd2 {[%clk 0:02:03.2]} 11... Nc5 {[%clk 0:02:21.1]} 12. b4 {[%clk 0:01:56.6]}
12... Ne6 {[%clk 0:02:21]} 13. c3 {[%clk 0:01:56.2]} 13... Rd8 {[%clk
0:02:18.9]} 14. a5 {[%clk 0:01:48.5]} 14... Bd7 {[%clk 0:02:15.4]} 15. Kc2
{[%clk 0:01:40.6]} 15... Be8 {[%clk 0:02:14.9]} 16. g3 {[%clk 0:01:05.7]} 16...
c5 {[%clk 0:02:12.1]} 17. Bh3 {[%clk 0:01:03.7]} 17... cxb4 {[%clk 0:02:01.6]}
18. Bxe6 {[%clk 0:01:02.5]} 18... bxc3 {[%clk 0:01:59.2]} 19. Kxc3 {[%clk
0:00:43.5]} 19... fxe6 {[%clk 0:01:58]} 20. Rab1 {[%clk 0:00:41.2]} 20... Bc6
{[%clk 0:01:38.4]} 21. Ne5 {[%clk 0:00:30.2]} 21... Rac8 {[%clk 0:01:37.9]} 22.
Ndc4 {[%clk 0:00:30.7]} 22... Nxe4+ {[%clk 0:00:43.6]} 23. fxe4 {[%clk
0:00:19.2]} 23... Bxe4 {[%clk 0:00:44.5]} 24. Rhe1 {[%clk 0:00:16.3]} 24... Bxb1
{[%clk 0:00:43.8]} 25. Rxb1 {[%clk 0:00:17.2]} 25... Rd5 {[%clk 0:00:44.1]} 26.
Kb4 {[%clk 0:00:15.2]} 26... Rcc5 {[%clk 0:00:43.1]} 27. Re1 {[%clk 0:00:14.4]}
27... Kg7 {[%clk 0:00:37.2]} 28. h4 {[%clk 0:00:14.1]} 28... b5 {[%clk
0:00:27.1]} 29. axb6 {[%clk 0:00:12.8]} 29... axb6 {[%clk 0:00:27.4]} 30. Nf3
{[%clk 0:00:08.7]} 30... Rd3 {[%clk 0:00:16.1]} 31. Ng5 {[%clk 0:00:08.6]} 31...
Kg8 {[%clk 0:00:07.5]} 32. Nxe6 {[%clk 0:00:08.3]} 32... Rf5 {[%clk 0:00:06.4]}
33. g4 {[%clk 0:00:06.7]} 33... Rff3 {[%clk 0:00:05.9]} 34. Ne5 {[%clk
0:00:05.1]} 34... Rb3+ {[%clk 0:00:05.8]} 35. Kc4 {[%clk 0:00:05.4]} 35... Rfe3
{[%clk 0:00:06]} 36. Rf1 {[%clk 0:00:03.1]} 36... Re4+ {[%clk 0:00:01.5]} 37.
Kd5 {[%clk 0:00:03.1]} 1-0

[Event "*** Titled Tuesday Blitz"]
[Site "Chess.com"]
[Date "2020.04.28"]
[Round "5"]
[White "Art10ECHR"]
[Black "LizaSolovyova"]
[Result "1/2-1/2"]
[WhiteElo "2383"]
[BlackElo "2537"]
[TimeControl "180+1"]
[EndTime "10:55:53 PDT"]
[Termination "Game drawn by repetition"]

1. c4 {[%clk 0:02:59.7]} 1... e5 {[%clk 0:02:59.8]} 2. g3 {[%clk 0:02:56.8]}
2... d6 {[%clk 0:03:00]} 3. d4 {[%clk 0:02:54]} 3... Nc6 {[%clk 0:02:52.8]} 4.
Nf3 {[%clk 0:02:39.1]} 4... Bg4 {[%clk 0:02:49.2]} 5. d5 {[%clk 0:02:33.8]} 5...
Bxf3 {[%clk 0:02:36.3]} 6. exf3 {[%clk 0:02:34.7]} 6... Nd4 {[%clk 0:02:27.1]}
7. Be3 {[%clk 0:02:23.2]} 7... Qf6 {[%clk 0:02:17.2]} 8. Bg2 {[%clk 0:02:12.6]}
8... Ne7 {[%clk 0:02:05]} 9. Nc3 {[%clk 0:02:08.4]} 9... Nef5 {[%clk 0:01:57.6]}
10. O-O {[%clk 0:01:52.8]} 10... Be7 {[%clk 0:01:44.3]} 11. Qa4+ {[%clk
0:01:51.9]} 11... Kf8 {[%clk 0:01:32]} 12. Rae1 {[%clk 0:01:40.8]} 12... h5
{[%clk 0:01:27.9]} 13. f4 {[%clk 0:01:29.3]} 13... a6 {[%clk 0:01:22]} 14. Qd1
{[%clk 0:01:20.5]} 14... b5 {[%clk 0:01:18.6]} 15. b3 {[%clk 0:01:07.2]} 15...
Qg6 {[%clk 0:01:07.4]} 16. Ne2 {[%clk 0:01:00.1]} 16... Bf6 {[%clk 0:01:05.8]}
17. Be4 {[%clk 0:00:52.7]} 17... Nxe3 {[%clk 0:00:55]} 18. Qd3 {[%clk
0:00:40.7]} 18... Nf3+ {[%clk 0:00:44.1]} 19. Kh1 {[%clk 0:00:36.9]} 19... Nxe1
{[%clk 0:00:44.1]} 20. Rxe1 {[%clk 0:00:33.2]} 20... Qg4 {[%clk 0:00:31.6]} 21.
fxe3 {[%clk 0:00:21.9]} 21... h4 {[%clk 0:00:29.2]} 22. Kg1 {[%clk 0:00:12.2]}
22... hxg3 {[%clk 0:00:29.1]} 23. hxg3 {[%clk 0:00:11.7]} 23... Qh3 {[%clk
0:00:28.5]} 24. Bg2 {[%clk 0:00:11.8]} 24... Qh2+ {[%clk 0:00:28.4]} 25. Kf2
{[%clk 0:00:12.3]} 25... exf4 {[%clk 0:00:25.5]} 26. exf4 {[%clk 0:00:11.2]}
26... Re8 {[%clk 0:00:23.5]} 27. Rh1 {[%clk 0:00:11.1]} 27... Qxh1 {[%clk
0:00:23.9]} 28. Bxh1 {[%clk 0:00:11.5]} 28... Rxh1 {[%clk 0:00:24.4]} 29. Kg2
{[%clk 0:00:11.8]} 29... Re1 {[%clk 0:00:24]} 30. Ng1 {[%clk 0:00:10.6]} 30...
R1e3 {[%clk 0:00:22.9]} 31. Qf1 {[%clk 0:00:10.3]} 31... b4 {[%clk 0:00:22.5]}
32. c5 {[%clk 0:00:10]} 32... dxc5 {[%clk 0:00:22.5]} 33. Qxa6 {[%clk
0:00:10.7]} 33... Bd4 {[%clk 0:00:21.7]} 34. Qc6 {[%clk 0:00:10.6]} 34... Rc3
{[%clk 0:00:18.4]} 35. Nf3 {[%clk 0:00:09.8]} 35... Re2+ {[%clk 0:00:18.1]} 36.
Kh3 {[%clk 0:00:09.6]} 36... Rxf3 {[%clk 0:00:17]} 37. Qxc7 {[%clk 0:00:10.5]}
37... Kg8 {[%clk 0:00:16.4]} 38. Qd8+ {[%clk 0:00:10]} 38... Kh7 {[%clk
0:00:16.6]} 39. Qh4+ {[%clk 0:00:10.9]} 39... Kg8 {[%clk 0:00:16.8]} 40. Qd8+
{[%clk 0:00:11.5]} 40... Kh7 {[%clk 0:00:17.3]} 41. Qh4+ {[%clk 0:00:12.1]}
41... Kg8 {[%clk 0:00:15.9]} 42. Qd8+ {[%clk 0:00:12.5]} 1/2-1/2

[Event "*** Titled Tuesday Blitz"]
[Site "Chess.com"]
[Date "2020.04.28"]
[Round "5"]
[White "CalinGheorghiu"]
[Black "tsvet2005"]
[Result "1-0"]
[WhiteElo "2339"]
[BlackElo "2499"]
[TimeControl "180+1"]
[EndTime "10:55:53 PDT"]
[Termination "CalinGheorghiu won by checkmate"]

1. d4 {[%clk 0:03:00.9]} 1... d5 {[%clk 0:03:00.1]} 2. c4 {[%clk 0:02:54.7]}
2... e6 {[%clk 0:03:00.3]} 3. Nc3 {[%clk 0:02:53.6]} 3... c6 {[%clk 0:03:00.7]}
4. e4 {[%clk 0:02:51.5]} 4... dxe4 {[%clk 0:03:01.6]} 5. Nxe4 {[%clk 0:02:51.2]}
5... Bb4+ {[%clk 0:03:02.2]} 6. Bd2 {[%clk 0:02:51.8]} 6... Qxd4 {[%clk
0:03:02.2]} 7. Bxb4 {[%clk 0:02:52.4]} 7... Qxe4+ {[%clk 0:03:02.5]} 8. Ne2
{[%clk 0:02:53]} 8... Na6 {[%clk 0:02:59.7]} 9. Bc3 {[%clk 0:02:30.6]} 9... f6
{[%clk 0:02:52.4]} 10. f3 {[%clk 0:02:10.8]} 10... Qxc4 {[%clk 0:02:28.4]} 11.
Nd4 {[%clk 0:01:59.9]} 11... Qd5 {[%clk 0:02:25.4]} 12. Bxa6 {[%clk 0:01:32.2]}
12... bxa6 {[%clk 0:02:26.3]} 13. O-O {[%clk 0:01:32.2]} 13... Ne7 {[%clk
0:02:20.1]} 14. Qa4 {[%clk 0:01:22.6]} 14... e5 {[%clk 0:02:04.6]} 15. Nb3
{[%clk 0:01:00.7]} 15... Qb5 {[%clk 0:01:47.7]} 16. Qh4 {[%clk 0:00:54.2]} 16...
Nf5 {[%clk 0:01:39.4]} 17. Qe4 {[%clk 0:00:43.1]} 17... Qd5 {[%clk 0:01:29.7]}
18. Qe2 {[%clk 0:00:42.8]} 18... O-O {[%clk 0:01:16.5]} 19. Rad1 {[%clk
0:00:43.1]} 19... Qb5 {[%clk 0:01:16.5]} 20. Qe4 {[%clk 0:00:40.1]} 20... Be6
{[%clk 0:01:13.7]} 21. f4 {[%clk 0:00:34.2]} 21... Qc4 {[%clk 0:00:55.7]} 22.
Qe1 {[%clk 0:00:19.3]} 22... e4 {[%clk 0:00:47]} 23. Nd4 {[%clk 0:00:17.5]}
23... e3 {[%clk 0:00:17.6]} 24. Nxf5 {[%clk 0:00:11.6]} 24... Bxf5 {[%clk
0:00:18.5]} 25. Qxe3 {[%clk 0:00:12]} 25... Qxa2 {[%clk 0:00:19]} 26. Qc5 {[%clk
0:00:07.6]} 26... Be4 {[%clk 0:00:16]} 27. Rfe1 {[%clk 0:00:04.3]} 27... Bd5
{[%clk 0:00:12.4]} 28. Re7 {[%clk 0:00:04.6]} 28... Qb3 {[%clk 0:00:12]} 29.
Rde1 {[%clk 0:00:04]} 29... Rab8 {[%clk 0:00:04.9]} 30. Rxg7+ {[%clk 0:00:02.1]}
30... Kxg7 {[%clk 0:00:04.2]} 31. Qe7+ {[%clk 0:00:02]} 31... Kg8 {[%clk
0:00:03.6]} 32. Bxf6 {[%clk 0:00:01.5]} 32... Qb6+ {[%clk 0:00:02.9]} 33. Kh1
{[%clk 0:00:01.1]} 33... Rb7 {[%clk 0:00:03.3]} 34. Qe5 {[%clk 0:00:01.1]} 34...
Qc7 {[%clk 0:00:02.2]} 35. Qg5+ {[%clk 0:00:01.6]} 35... Kf7 {[%clk 0:00:02.7]}
36. Qg7# {[%clk 0:00:01]} 1-0